[Event "January 9 Early 2024"]
[Site "https://www.chess.com"]
[Date "2024.01.11"]
[Round "6"]
[White "Smirnov, Mark"]
[Black "Bryakin, Mikhail"]
[Result "0-1"]
[Board "100"]
[TimeControl "180+1"]
[WhiteFideId "13764594"]
[BlackFideId "4165314"]
[WhiteElo "2527"]
[BlackElo "2840"]
[WhiteTeam "KAZ"]
[BlackTeam "SRB"]
[WhiteClock "0:00:02"]
[BlackClock "0:01:39"]

1. e4 {[%clk 0:03:00]}  e6 {[%clk 0:02:58]} 2. d4 {[%clk 0:02:59]}  d5 {[%clk 0:02:58]} 3. Nd2 {[%clk 0:02:58]}  Nc6 {[%clk 0:02:57]} 4. Ngf3 {[%clk 0:02:57]}  Nf6 {[%clk 0:02:56]} 5. e5 {[%clk 0:02:56]}  Nd7 {[%clk 0:02:56]} 6. Bd3 {[%clk 0:02:56]}  Nb6 {[%clk 0:02:57]} 7. c3 {[%clk 0:02:50]}  Bd7 {[%clk 0:02:57]} 8. h4 {[%clk 0:02:43]}  h6 {[%clk 0:02:58]} 9. Nf1 {[%clk 0:02:39]}  Na5 {[%clk 0:02:58]} 10. b3 {[%clk 0:02:35]}  a6 {[%clk 0:02:58]} 11. Ng3 {[%clk 0:02:28]}  Bb5 {[%clk 0:02:58]} 12. Bc2 {[%clk 0:02:25]}  g6 {[%clk 0:02:55]} 13. Be3 {[%clk 0:02:17]}  Nd7 {[%clk 0:02:41]} 14. Qd2 {[%clk 0:02:14]}  b6 {[%clk 0:02:40]} 15. Nh2 {[%clk 0:01:58]}  Nb7 {[%clk 0:02:39]} 16. Ng4 {[%clk 0:01:56]}  h5 {[%clk 0:02:39]} 17. Bg5 {[%clk 0:01:38]}  Be7 {[%clk 0:02:39]} 18. Bxe7 {[%clk 0:01:36]}  Qxe7 {[%clk 0:02:39]} 19. Ne3 {[%clk 0:01:26]}  c5 {[%clk 0:02:40]} 20. a4 {[%clk 0:00:55]}  Bc6 {[%clk 0:02:33]} 21. Ne2 {[%clk 0:00:55]}  a5 {[%clk 0:02:32]} 22. Nf4 {[%clk 0:00:24]}  O-O-O {[%clk 0:02:31]} 23. O-O-O {[%clk 0:00:22]}  cxd4 {[%clk 0:02:29]} 24. cxd4 {[%clk 0:00:22]}  Qa3+ {[%clk 0:02:29]} 25. Kb1 {[%clk 0:00:22]}  b5 {[%clk 0:02:29]} 26. Qc1 {[%clk 0:00:22]}  Qxc1+ {[%clk 0:02:25]} 27. Rxc1 {[%clk 0:00:23]}  bxa4 {[%clk 0:02:07]} 28. Bxg6 {[%clk 0:00:22]}  fxg6 {[%clk 0:01:48]} 29. Rxc6+ {[%clk 0:00:21]}  Kb8 {[%clk 0:01:49]} 30. bxa4 {[%clk 0:00:19]}  Nf8 {[%clk 0:01:49]} 31. Nxe6 {[%clk 0:00:12]}  Nxe6 {[%clk 0:01:49]} 32. Rxe6 {[%clk 0:00:13]}  Rhf8 {[%clk 0:01:49]} 33. Rf6 {[%clk 0:00:08]}  Rxf6 {[%clk 0:01:47]} 34. exf6 {[%clk 0:00:09]}  Rd6 {[%clk 0:01:48]} 35. f7 {[%clk 0:00:06]}  Rf6 {[%clk 0:01:48]} 36. f3 {[%clk 0:00:07]}  Rxf7 {[%clk 0:01:47]} 37. Rc1 {[%clk 0:00:05]}  Rf4 {[%clk 0:01:46]} 38. Nxd5 {[%clk 0:00:04]}  Rxd4 {[%clk 0:01:46]} 39. Ne7 {[%clk 0:00:04]}  Rb4+ {[%clk 0:01:45]} 40. Kc2 {[%clk 0:00:03]}  Rxh4 {[%clk 0:01:44]} 41. Nxg6 {[%clk 0:00:04]}  Rxa4 {[%clk 0:01:44]} 42. Ne5 {[%clk 0:00:03]}  Kc7 {[%clk 0:01:42]} 43. Kd2+ {[%clk 0:00:03]}  Kd6 {[%clk 0:01:41]} 44. Nc4+ {[%clk 0:00:04]}  Ke6 {[%clk 0:01:42]} 45. Ne3 {[%clk 0:00:02]}  Nd6 {[%clk 0:01:41]} 46. Rc6 {[%clk 0:00:02]}  Ra2+ {[%clk 0:01:41]} 47. Kd3 {[%clk 0:00:02]}  Kd7 {[%clk 0:01:41]} 48. Rc5 {[%clk 0:00:02]}  Ra3+ {[%clk 0:01:41]} 49. Kd2 {[%clk 0:00:03]}  Ra2+ {[%clk 0:01:41]} 50. Kd3 {[%clk 0:00:03]}  h4 {[%clk 0:01:41]} 51. Rh5 {[%clk 0:00:02]}  Ra4 {[%clk 0:01:41]} 52. Rh6 {[%clk 0:00:02]}  Ra3+ {[%clk 0:01:39]} 53. Kd4 {[%clk 0:00:02]}  Rxe3 {[%clk 0:01:38]} 54. Rxd6+ {[%clk 0:00:01]}  Kxd6 {[%clk 0:01:38]} 55. Kxe3 {[%clk 0:00:02]}  Ke5 {[%clk 0:01:39]} 56. f4+ {[%clk 0:00:02]}  Kf5 {[%clk 0:01:39]} 0-1

[Event "January 9 Early 2024"]
[Site "https://www.chess.com"]
[Date "2024.01.11"]
[Round "6"]
[White "Kvaloy, Aksel Bu"]
[Black "Murzin, Volodar"]
[Result "0-1"]
[Board "103"]
[TimeControl "180+1"]
[WhiteFideId "1528815"]
[BlackFideId "44155573"]
[WhiteElo "2738"]
[BlackElo "2949"]
[WhiteTeam "NOR"]
[BlackTeam "FID"]
[WhiteClock "0:00:20"]
[BlackClock "0:00:21"]

1. d4 {[%clk 0:03:00]}  Nf6 {[%clk 0:01:35]} 2. Nf3 {[%clk 0:02:59]}  g6 {[%clk 0:01:35]} 3. Bg5 {[%clk 0:02:59]}  Bg7 {[%clk 0:01:35]} 4. Nbd2 {[%clk 0:02:59]}  O-O {[%clk 0:01:35]} 5. c3 {[%clk 0:02:59]}  d6 {[%clk 0:01:33]} 6. e4 {[%clk 0:02:56]}  Nbd7 {[%clk 0:01:33]} 7. Be2 {[%clk 0:02:55]}  e5 {[%clk 0:01:32]} 8. O-O {[%clk 0:02:48]}  Re8 {[%clk 0:01:32]} 9. dxe5 {[%clk 0:02:49]}  dxe5 {[%clk 0:01:32]} 10. Qc2 {[%clk 0:02:46]}  h6 {[%clk 0:01:32]} 11. Bh4 {[%clk 0:02:45]}  g5 {[%clk 0:01:25]} 12. Bg3 {[%clk 0:02:45]}  Nh5 {[%clk 0:01:26]} 13. Nc4 {[%clk 0:02:42]}  Nf4 {[%clk 0:01:25]} 14. Rfe1 {[%clk 0:02:36]}  Qf6 {[%clk 0:01:21]} 15. Bf1 {[%clk 0:02:33]}  Qg6 {[%clk 0:01:14]} 16. Ne3 {[%clk 0:02:30]}  Nf6 {[%clk 0:01:09]} 17. Nd2 {[%clk 0:02:11]}  h5 {[%clk 0:01:02]} 18. Rad1 {[%clk 0:02:03]}  h4 {[%clk 0:00:39]} 19. Bxf4 {[%clk 0:02:03]}  exf4 {[%clk 0:00:28]} 20. Nf5 {[%clk 0:02:03]}  Bf8 {[%clk 0:00:29]} 21. Nf3 {[%clk 0:01:58]}  Rxe4 {[%clk 0:00:26]} 22. Bd3 {[%clk 0:01:39]}  Bxf5 {[%clk 0:00:25]} 23. Bxe4 {[%clk 0:01:00]}  Bxe4 {[%clk 0:00:26]} 24. Qe2 {[%clk 0:00:59]}  Re8 {[%clk 0:00:24]} 25. Qc4 {[%clk 0:00:46]}  Bd6 {[%clk 0:00:23]} 26. Nd2 {[%clk 0:00:46]}  Bc6 {[%clk 0:00:21]} 27. Rxe8+ {[%clk 0:00:46]}  Nxe8 {[%clk 0:00:22]} 28. Re1 {[%clk 0:00:46]}  Nf6 {[%clk 0:00:23]} 29. Nb3 {[%clk 0:00:42]}  h3 {[%clk 0:00:21]} 30. gxh3 {[%clk 0:00:32]}  g4 {[%clk 0:00:21]} 31. h4 {[%clk 0:00:28]}  g3 {[%clk 0:00:21]} 32. hxg3 {[%clk 0:00:20]}  fxg3 {[%clk 0:00:22]} 33. Qd3 {[%clk 0:00:20]}  Qxd3 {[%clk 0:00:21]} 0-1

[Event "January 9 Early 2024"]
[Site "https://www.chess.com"]
[Date "2024.01.11"]
[Round "6"]
[White "Sielecki, Christof"]
[Black "Jovic, Stanoje"]
[Result "1-0"]
[Board "104"]
[TimeControl "180+1"]
[WhiteFideId "4620437"]
[BlackFideId "905020"]
[WhiteElo "2577"]
[BlackElo "2414"]
[WhiteTeam "GER"]
[BlackTeam "SRB"]
[WhiteClock "0:00:24"]
[BlackClock "0:00:01"]

1. d4 {[%clk 0:03:00]}  Nf6 {[%clk 0:02:59]} 2. Nf3 {[%clk 0:03:00]}  e6 {[%clk 0:02:59]} 3. g3 {[%clk 0:03:00]}  b5 {[%clk 0:02:58]} 4. Bg2 {[%clk 0:03:00]}  Bb7 {[%clk 0:02:58]} 5. O-O {[%clk 0:03:00]}  c5 {[%clk 0:02:57]} 6. c3 {[%clk 0:02:59]}  Qb6 {[%clk 0:02:55]} 7. a4 {[%clk 0:02:51]}  b4 {[%clk 0:02:52]} 8. a5 {[%clk 0:02:51]}  Qc7 {[%clk 0:02:50]} 9. Bf4 {[%clk 0:02:48]}  d6 {[%clk 0:02:45]} 10. dxc5 {[%clk 0:02:42]}  Qxc5 {[%clk 0:02:44]} 11. Qa4+ {[%clk 0:02:36]}  Bc6 {[%clk 0:02:20]} 12. cxb4 {[%clk 0:02:16]}  Qc4 {[%clk 0:01:49]} 13. Nfd2 {[%clk 0:01:35]}  Qa6 {[%clk 0:01:15]} 14. Bxc6+ {[%clk 0:01:34]}  Qxc6 {[%clk 0:01:12]} 15. b5 {[%clk 0:01:35]}  Qd7 {[%clk 0:01:11]} 16. Nc3 {[%clk 0:01:29]}  Be7 {[%clk 0:01:09]} 17. Nc4 {[%clk 0:01:22]}  O-O {[%clk 0:01:07]} 18. Rfd1 {[%clk 0:01:22]}  Rc8 {[%clk 0:01:05]} 19. b6 {[%clk 0:01:16]}  Nc6 {[%clk 0:00:40]} 20. Nxd6 {[%clk 0:01:10]}  Bxd6 {[%clk 0:00:34]} 21. Rxd6 {[%clk 0:01:08]}  Qb7 {[%clk 0:00:30]} 22. Nb5 {[%clk 0:00:45]}  axb6 {[%clk 0:00:25]} 23. a6 {[%clk 0:00:45]}  Qe7 {[%clk 0:00:23]} 24. Rc1 {[%clk 0:00:27]}  e5 {[%clk 0:00:12]} 25. Be3 {[%clk 0:00:27]}  Na7 {[%clk 0:00:07]} 26. Rxc8+ {[%clk 0:00:24]}  Rxc8 {[%clk 0:00:01]} 27. Rxb6 {[%clk 0:00:24]} 1-0

[Event "January 9 Early 2024"]
[Site "https://www.chess.com"]
[Date "2024.01.11"]
[Round "6"]
[White "Gutierrez Carmona, Juan Alejandro"]
[Black "Pogorelskikh, Sofia"]
[Result "1-0"]
[Board "105"]
[TimeControl "180+1"]
[WhiteFideId "5106770"]
[BlackFideId "44164548"]
[WhiteElo "2187"]
[BlackElo "2264"]
[WhiteTeam "MEX"]
[BlackTeam "SRB"]
[WhiteClock "0:00:19"]
[BlackClock "0:00:09"]

1. e4 {[%clk 0:02:59]}  c5 {[%clk 0:02:58]} 2. Nf3 {[%clk 0:02:54]}  Nc6 {[%clk 0:02:58]} 3. Bb5 {[%clk 0:02:54]}  e5 {[%clk 0:02:57]} 4. Bxc6 {[%clk 0:02:53]}  dxc6 {[%clk 0:02:49]} 5. d3 {[%clk 0:02:52]}  Bd6 {[%clk 0:02:42]} 6. a4 {[%clk 0:02:50]}  h6 {[%clk 0:02:30]} 7. a5 {[%clk 0:02:47]}  Nf6 {[%clk 0:02:26]} 8. Nbd2 {[%clk 0:02:48]}  Be6 {[%clk 0:02:15]} 9. b3 {[%clk 0:02:43]}  Nd7 {[%clk 0:02:10]} 10. O-O {[%clk 0:02:40]}  O-O {[%clk 0:02:09]} 11. Nc4 {[%clk 0:02:40]}  Bc7 {[%clk 0:02:07]} 12. Bd2 {[%clk 0:02:21]}  b5 {[%clk 0:02:04]} 13. axb6 {[%clk 0:02:07]}  axb6 {[%clk 0:02:04]} 14. Bc3 {[%clk 0:02:07]}  Rxa1 {[%clk 0:01:59]} 15. Qxa1 {[%clk 0:02:04]}  Qb8 {[%clk 0:01:59]} 16. Qa6 {[%clk 0:01:54]}  f6 {[%clk 0:01:49]} 17. Ra1 {[%clk 0:01:52]}  Bf7 {[%clk 0:01:13]} 18. Nh4 {[%clk 0:01:42]}  b5 {[%clk 0:00:39]} 19. Qxc6 {[%clk 0:01:03]}  bxc4 {[%clk 0:00:35]} 20. Qxd7 {[%clk 0:01:03]}  cxb3 {[%clk 0:00:30]} 21. cxb3 {[%clk 0:01:03]}  Qxb3 {[%clk 0:00:29]} 22. Be1 {[%clk 0:00:38]}  Bb8 {[%clk 0:00:18]} 23. Nf5 {[%clk 0:00:34]}  Qe6 {[%clk 0:00:16]} 24. Qb7 {[%clk 0:00:27]}  h5 {[%clk 0:00:10]} 25. h3 {[%clk 0:00:23]}  Qc8 {[%clk 0:00:09]} 26. Ne7+ {[%clk 0:00:19]} 1-0

[Event "January 9 Early 2024"]
[Site "https://www.chess.com"]
[Date "2024.01.11"]
[Round "6"]
[White "Kadric, Denis"]
[Black "Vestby-Ellingsen, Mads"]
[Result "1/2-1/2"]
[Board "106"]
[TimeControl "180+1"]
[WhiteFideId "14403803"]
[BlackFideId "1520857"]
[WhiteElo "2904"]
[BlackElo "2640"]
[WhiteTeam "MNE"]
[BlackTeam "NOR"]
[WhiteClock "0:00:13"]
[BlackClock "0:00:10"]

1. e4 {[%clk 0:03:00]}  d5 {[%clk 0:02:59]} 2. exd5 {[%clk 0:03:00]}  Qxd5 {[%clk 0:03:00]} 3. Nf3 {[%clk 0:02:59]}  Bg4 {[%clk 0:02:58]} 4. Be2 {[%clk 0:02:59]}  Nc6 {[%clk 0:02:58]} 5. h3 {[%clk 0:03:00]}  Bh5 {[%clk 0:02:57]} 6. d4 {[%clk 0:02:58]}  O-O-O {[%clk 0:02:54]} 7. c4 {[%clk 0:02:57]}  Qd6 {[%clk 0:02:33]} 8. d5 {[%clk 0:02:44]}  Bxf3 {[%clk 0:02:30]} 9. gxf3 {[%clk 0:02:35]}  Ne5 {[%clk 0:02:27]} 10. f4 {[%clk 0:02:09]}  Ng6 {[%clk 0:02:23]} 11. f5 {[%clk 0:01:51]}  Nf4 {[%clk 0:02:10]} 12. Bf3 {[%clk 0:01:27]}  e5 {[%clk 0:01:59]} 13. Nc3 {[%clk 0:01:22]}  Nf6 {[%clk 0:01:54]} 14. a3 {[%clk 0:01:08]}  g5 {[%clk 0:01:04]} 15. Be3 {[%clk 0:01:05]}  Qa6 {[%clk 0:00:55]} 16. Qb3 {[%clk 0:00:44]}  Nd3+ {[%clk 0:00:51]} 17. Ke2 {[%clk 0:00:45]}  Nf4+ {[%clk 0:00:37]} 18. Bxf4 {[%clk 0:00:28]}  exf4 {[%clk 0:00:37]} 19. Rhd1 {[%clk 0:00:25]}  h5 {[%clk 0:00:31]} 20. Kf1 {[%clk 0:00:18]}  g4 {[%clk 0:00:31]} 21. Be2 {[%clk 0:00:14]}  f3 {[%clk 0:00:28]} 22. Bd3 {[%clk 0:00:14]}  Qd6 {[%clk 0:00:26]} 23. Nb5 {[%clk 0:00:11]}  Qh2 {[%clk 0:00:15]} 24. Nxa7+ {[%clk 0:00:11]}  Kb8 {[%clk 0:00:15]} 25. Nc6+ {[%clk 0:00:12]}  Kc8 {[%clk 0:00:15]} 26. Na7+ {[%clk 0:00:12]}  Kb8 {[%clk 0:00:10]} 27. Nc6+ {[%clk 0:00:12]}  Kc8 {[%clk 0:00:10]} 28. Na7+ {[%clk 0:00:13]} 1/2-1/2

[Event "January 9 Early 2024"]
[Site "https://www.chess.com"]
[Date "2024.01.11"]
[Round "6"]
[White "Lund, Gunnar"]
[Black "Beerdsen, Thomas"]
[Result "1/2-1/2"]
[Board "107"]
[TimeControl "180+1"]
[WhiteFideId "1520814"]
[BlackFideId "1030108"]
[WhiteElo "2665"]
[BlackElo "2848"]
[WhiteTeam "NOR"]
[BlackTeam "NED"]
[WhiteClock "0:00:12"]
[BlackClock "0:01:19"]

1. d4 {[%clk 0:03:00]}  Nf6 {[%clk 0:02:59]} 2. c4 {[%clk 0:02:55]}  a6 {[%clk 0:03:00]} 3. Nc3 {[%clk 0:02:53]}  b5 {[%clk 0:03:00]} 4. cxb5 {[%clk 0:02:52]}  axb5 {[%clk 0:03:01]} 5. Nxb5 {[%clk 0:02:53]}  e5 {[%clk 0:03:02]} 6. dxe5 {[%clk 0:02:39]}  Ne4 {[%clk 0:03:02]} 7. Nc3 {[%clk 0:02:26]}  Bb4 {[%clk 0:03:02]} 8. Bd2 {[%clk 0:02:25]}  Bxc3 {[%clk 0:02:59]} 9. Bxc3 {[%clk 0:02:24]}  Nxc3 {[%clk 0:02:59]} 10. bxc3 {[%clk 0:02:25]}  Nc6 {[%clk 0:02:59]} 11. Nf3 {[%clk 0:02:19]}  Qe7 {[%clk 0:02:54]} 12. e3 {[%clk 0:02:19]}  Ra3 {[%clk 0:02:52]} 13. Qc1 {[%clk 0:02:00]}  Qc5 {[%clk 0:02:51]} 14. Be2 {[%clk 0:01:40]}  Rxc3 {[%clk 0:02:48]} 15. Qd1 {[%clk 0:01:40]}  Nxe5 {[%clk 0:02:43]} 16. O-O {[%clk 0:01:39]}  O-O {[%clk 0:02:39]} 17. Rc1 {[%clk 0:01:38]}  d6 {[%clk 0:02:31]} 18. Rxc3 {[%clk 0:01:27]}  Qxc3 {[%clk 0:02:32]} 19. Qc1 {[%clk 0:01:27]}  Qa5 {[%clk 0:02:31]} 20. Nxe5 {[%clk 0:01:26]}  dxe5 {[%clk 0:02:32]} 21. Bc4 {[%clk 0:01:25]}  Bb7 {[%clk 0:02:29]} 22. Rd1 {[%clk 0:01:22]}  g6 {[%clk 0:02:25]} 23. Bb3 {[%clk 0:01:19]}  Bc8 {[%clk 0:02:06]} 24. Rd5 {[%clk 0:01:14]}  Qb6 {[%clk 0:01:59]} 25. Rc5 {[%clk 0:01:14]}  Be6 {[%clk 0:01:57]} 26. Bxe6 {[%clk 0:01:13]}  Qxe6 {[%clk 0:01:58]} 27. Qc2 {[%clk 0:01:04]}  Ra8 {[%clk 0:01:57]} 28. a4 {[%clk 0:01:01]}  Qd6 {[%clk 0:01:51]} 29. Rxc7 {[%clk 0:00:54]}  Qb4 {[%clk 0:01:52]} 30. h3 {[%clk 0:00:40]}  Rxa4 {[%clk 0:01:51]} 31. Kh2 {[%clk 0:00:36]}  Kg7 {[%clk 0:01:48]} 32. Rb7 {[%clk 0:00:32]}  Qh4 {[%clk 0:01:46]} 33. g3 {[%clk 0:00:30]}  Qf6 {[%clk 0:01:44]} 34. Rb6 {[%clk 0:00:17]}  Qxb6 {[%clk 0:01:30]} 35. Qxa4 {[%clk 0:00:17]}  h5 {[%clk 0:01:30]} 36. h4 {[%clk 0:00:17]}  Qe6 {[%clk 0:01:25]} 37. Kg2 {[%clk 0:00:17]}  f6 {[%clk 0:01:25]} 38. Qa7+ {[%clk 0:00:16]}  Kh6 {[%clk 0:01:26]} 39. Qa1 {[%clk 0:00:17]}  g5 {[%clk 0:01:26]} 40. hxg5+ {[%clk 0:00:17]}  fxg5 {[%clk 0:01:25]} 41. Qa8 {[%clk 0:00:18]}  Kh7 {[%clk 0:01:23]} 42. Qb7+ {[%clk 0:00:17]}  Kg6 {[%clk 0:01:24]} 43. Qb8 {[%clk 0:00:18]}  h4 {[%clk 0:01:24]} 44. gxh4 {[%clk 0:00:18]}  gxh4 {[%clk 0:01:25]} 45. Qb4 {[%clk 0:00:17]}  Kh5 {[%clk 0:01:23]} 46. Qe4 {[%clk 0:00:17]}  Qg4+ {[%clk 0:01:23]} 47. Qxg4+ {[%clk 0:00:17]}  Kxg4 {[%clk 0:01:24]} 48. f3+ {[%clk 0:00:18]}  Kg5 {[%clk 0:01:23]} 49. Kh3 {[%clk 0:00:18]}  Kh5 {[%clk 0:01:22]} 50. Kg2 {[%clk 0:00:15]}  Kg5 {[%clk 0:01:21]} 51. Kh3 {[%clk 0:00:15]}  Kh5 {[%clk 0:01:21]} 52. Kh2 {[%clk 0:00:13]}  Kh6 {[%clk 0:01:20]} 53. Kg2 {[%clk 0:00:14]}  Kg6 {[%clk 0:01:20]} 54. Kh3 {[%clk 0:00:13]}  Kg5 {[%clk 0:01:20]} 55. Kh2 {[%clk 0:00:11]}  Kf5 {[%clk 0:01:19]} 56. Kh3 {[%clk 0:00:11]}  Kg5 {[%clk 0:01:20]} 57. Kh2 {[%clk 0:00:12]}  Kf5 {[%clk 0:01:18]} 58. Kh3 {[%clk 0:00:12]}  Kg5 {[%clk 0:01:19]} 1/2-1/2

[Event "January 9 Early 2024"]
[Site "https://www.chess.com"]
[Date "2024.01.11"]
[Round "6"]
[White "Coca Cubillos, Jesus Alberto"]
[Black "Agrest, Inna"]
[Result "1-0"]
[Board "109"]
[TimeControl "180+1"]
[WhiteFideId "4462912"]
[BlackFideId "1708830"]
[WhiteElo "2583"]
[BlackElo "2375"]
[WhiteTeam "COL"]
[BlackTeam "SWE"]
[WhiteClock "0:01:07"]
[BlackClock "0:00:04"]

1. f4 {[%clk 0:03:00]}  e5 {[%clk 0:02:54]} 2. fxe5 {[%clk 0:03:01]}  d6 {[%clk 0:02:54]} 3. exd6 {[%clk 0:03:02]}  Bxd6 {[%clk 0:02:54]} 4. Nf3 {[%clk 0:03:03]}  g5 {[%clk 0:02:55]} 5. d4 {[%clk 0:03:02]}  g4 {[%clk 0:02:53]} 6. Ng5 {[%clk 0:03:03]}  Nc6 {[%clk 0:02:42]} 7. c3 {[%clk 0:03:03]}  Qe7 {[%clk 0:02:38]} 8. Qd3 {[%clk 0:03:02]}  h6 {[%clk 0:02:32]} 9. Ne4 {[%clk 0:03:02]}  Nf6 {[%clk 0:02:31]} 10. Nbd2 {[%clk 0:03:01]}  Nd5 {[%clk 0:02:22]} 11. g3 {[%clk 0:03:00]}  f5 {[%clk 0:02:15]} 12. Nxd6+ {[%clk 0:03:00]}  Qxd6 {[%clk 0:02:15]} 13. Bg2 {[%clk 0:02:57]}  Bd7 {[%clk 0:02:09]} 14. O-O {[%clk 0:02:57]}  O-O-O {[%clk 0:02:08]} 15. e4 {[%clk 0:02:57]}  fxe4 {[%clk 0:02:01]} 16. Nxe4 {[%clk 0:02:51]}  Qg6 {[%clk 0:01:57]} 17. Bd2 {[%clk 0:02:41]}  Kb8 {[%clk 0:01:44]} 18. Nc5 {[%clk 0:02:37]}  Qxd3 {[%clk 0:01:42]} 19. Nxd3 {[%clk 0:02:37]}  Bc8 {[%clk 0:01:40]} 20. Rae1 {[%clk 0:02:36]}  a6 {[%clk 0:01:23]} 21. Ne5 {[%clk 0:02:33]}  Nxe5 {[%clk 0:01:21]} 22. Rxe5 {[%clk 0:02:34]}  Nb6 {[%clk 0:01:21]} 23. b3 {[%clk 0:02:23]}  h5 {[%clk 0:01:21]} 24. Rf7 {[%clk 0:02:22]}  Rde8 {[%clk 0:01:13]} 25. Bf4 {[%clk 0:02:21]}  Nd7 {[%clk 0:01:01]} 26. Ree7 {[%clk 0:02:04]}  Rxe7 {[%clk 0:00:50]} 27. Rxe7 {[%clk 0:02:05]}  h4 {[%clk 0:00:50]} 28. gxh4 {[%clk 0:02:00]}  Rxh4 {[%clk 0:00:48]} 29. Re8 {[%clk 0:02:00]}  Rh7 {[%clk 0:00:38]} 30. Be4 {[%clk 0:01:56]}  Rf7 {[%clk 0:00:37]} 31. Bg5 {[%clk 0:01:51]}  Nf6 {[%clk 0:00:32]} 32. Bxf6 {[%clk 0:01:50]}  Rxf6 {[%clk 0:00:33]} 33. Kg2 {[%clk 0:01:50]}  c6 {[%clk 0:00:31]} 34. c4 {[%clk 0:01:41]}  Kc7 {[%clk 0:00:29]} 35. d5 {[%clk 0:01:42]}  Bd7 {[%clk 0:00:25]} 36. Re7 {[%clk 0:01:41]}  Kd6 {[%clk 0:00:23]} 37. Rg7 {[%clk 0:01:40]}  cxd5 {[%clk 0:00:22]} 38. Bxd5 {[%clk 0:01:39]}  b5 {[%clk 0:00:22]} 39. Kg3 {[%clk 0:01:35]}  bxc4 {[%clk 0:00:19]} 40. bxc4 {[%clk 0:01:35]}  Bc8 {[%clk 0:00:16]} 41. Rg8 {[%clk 0:01:23]}  Bd7 {[%clk 0:00:09]} 42. Ra8 {[%clk 0:01:21]}  Ke5 {[%clk 0:00:08]} 43. Ra7 {[%clk 0:01:18]}  Bf5 {[%clk 0:00:08]} 44. a4 {[%clk 0:01:14]}  Bc2 {[%clk 0:00:07]} 45. a5 {[%clk 0:01:14]}  Bd1 {[%clk 0:00:07]} 46. Re7+ {[%clk 0:01:09]}  Kd6 {[%clk 0:00:06]} 47. Rb7 {[%clk 0:01:09]}  Ke5 {[%clk 0:00:06]} 48. Rb6 {[%clk 0:01:09]}  Rf1 {[%clk 0:00:04]} 49. Rxa6 {[%clk 0:01:08]}  Rg1+ {[%clk 0:00:04]} 50. Kf2 {[%clk 0:01:07]} 1-0

[Event "January 9 Early 2024"]
[Site "https://www.chess.com"]
[Date "2024.01.11"]
[Round "6"]
[White "Marn, Jan"]
[Black "Ghosh, Chanchal Kumer"]
[Result "1-0"]
[Board "111"]
[TimeControl "180+1"]
[WhiteFideId "14619245"]
[BlackFideId "10201858"]
[WhiteElo "2478"]
[BlackElo "2081"]
[WhiteTeam "SLO"]
[BlackTeam "BAN"]
[WhiteClock "0:00:19"]
[BlackClock "0:00:19"]

1. e4 {[%clk 0:03:00]}  c5 {[%clk 0:03:00]} 2. b4 {[%clk 0:02:54]}  cxb4 {[%clk 0:02:56]} 3. a3 {[%clk 0:02:55]}  e6 {[%clk 0:02:50]} 4. d4 {[%clk 0:02:55]}  bxa3 {[%clk 0:02:39]} 5. Bxa3 {[%clk 0:02:55]}  Be7 {[%clk 0:02:33]} 6. Nf3 {[%clk 0:02:54]}  Nf6 {[%clk 0:02:33]} 7. e5 {[%clk 0:02:51]}  Nd5 {[%clk 0:02:32]} 8. c4 {[%clk 0:02:51]}  Nc7 {[%clk 0:02:19]} 9. Bxe7 {[%clk 0:02:48]}  Qxe7 {[%clk 0:02:19]} 10. Nc3 {[%clk 0:02:48]}  O-O {[%clk 0:02:17]} 11. Bd3 {[%clk 0:02:48]}  h6 {[%clk 0:02:10]} 12. Ne4 {[%clk 0:02:48]}  Nc6 {[%clk 0:02:06]} 13. O-O {[%clk 0:02:39]}  b6 {[%clk 0:01:56]} 14. Qe2 {[%clk 0:02:38]}  Ne8 {[%clk 0:01:50]} 15. Rfb1 {[%clk 0:02:32]}  Bb7 {[%clk 0:01:39]} 16. c5 {[%clk 0:02:24]}  Qd8 {[%clk 0:01:23]} 17. Nfd2 {[%clk 0:02:09]}  Nxd4 {[%clk 0:01:19]} 18. Qe3 {[%clk 0:02:01]}  Nf5 {[%clk 0:01:17]} 19. Qf4 {[%clk 0:01:53]}  f6 {[%clk 0:00:46]} 20. Nd6 {[%clk 0:01:33]}  Nfxd6 {[%clk 0:00:43]} 21. exd6 {[%clk 0:01:32]}  f5 {[%clk 0:00:41]} 22. Nc4 {[%clk 0:01:27]}  Bd5 {[%clk 0:00:37]} 23. Ne5 {[%clk 0:01:01]}  bxc5 {[%clk 0:00:37]} 24. Ng6 {[%clk 0:01:02]}  Rf6 {[%clk 0:00:37]} 25. Ne7+ {[%clk 0:00:56]}  Kf7 {[%clk 0:00:37]} 26. Nxd5 {[%clk 0:00:44]}  exd5 {[%clk 0:00:37]} 27. Qe5 {[%clk 0:00:41]}  Nxd6 {[%clk 0:00:35]} 28. Qxd5+ {[%clk 0:00:40]}  Kg6 {[%clk 0:00:35]} 29. Ra6 {[%clk 0:00:37]}  Ne4 {[%clk 0:00:32]} 30. Bxe4 {[%clk 0:00:32]}  fxe4 {[%clk 0:00:24]} 31. Qxe4+ {[%clk 0:00:32]}  Kf7 {[%clk 0:00:24]} 32. Qd5+ {[%clk 0:00:21]}  Kg6 {[%clk 0:00:20]} 33. g4 {[%clk 0:00:20]}  Rxa6 {[%clk 0:00:19]} 34. Qf5# {[%clk 0:00:19]} 1-0